Cogmind - Beta 16 --- EXPLORER MODE // 2025.10.28 @ 22:19:06 // Winter2019/RPGLIKE Player: Grimbling Result: Destroyed by B-74 Champion with Powered Hammer Performance ------------- Evolutions (8) 4000 Regions Visited (23) 4600 Robots Destroyed (76) 380 Value Destroyed (3707) 3707 Prototype IDs (51) 1020 Alien Tech Used (10) 2000 Bonus (10918) 10918 TOTAL SCORE: 26625 Bonus ------- Triggered Max Security 1000 High Alert Combat Kills 180 Follower Combat Kills 438 Met Zhirov 300 Used Core Reset Matrix 3000 Hacked Protovariant 500 Scanned by Researcher 500 Met Sigix 2000 Activated Exoskeleton 3000 Cogmind --------- Core Integrity 0/850 Matter 295/300 Energy 639/850 System Corruption 0% +Membrane Temperature Cool (0) Movement Flying (22) Location -2/Testing Parts ------- > --- POWER (3) -------- Quantum Reactor > --- PROPULSION (8) --- Cooled Cesium-ion Thruster Cooled Cesium-ion Thruster Field Propulsion Drive Q-thruster Q-thruster Improved Diametric Drive > --- UTILITY (10) ----- Advanced Sensor Array Advanced Signal Interpreter Experimental ECM Suite Improved Cloaking Device > --- WEAPON (2) ------- Core Stripper > --- INVENTORY (5) ---- Advanced Focal Shield Sigix Containment Pod Peak State ------------ > --- POWER ------------ Particle Reactor Graviton Reactor Quantum Reactor > --- PROPULSION ------- Cooled Cesium-ion Thruster Cooled Cesium-ion Thruster Field Propulsion Drive Q-thruster Q-thruster Q-thruster Q-thruster Improved Diametric Drive > --- UTILITY ---------- Experimental Power Amplifier Advanced Sensor Array Advanced Signal Interpreter Long-range Terrain Scanner Advanced Transmission Jammer Experimental ECM Suite Advanced Reaction Control System Experimental Phase Shifter Improved Cloaking Device Experimental Force Field > --- WEAPON ----------- Core Stripper > --- INVENTORY -------- Light Antimatter Reactor Advanced Focal Shield Sigix Containment Pod [Rating: 191] Favorites ----------- Power Light Antimatter Reactor Engine Improved Ion Engine Power Core Micro Fission Core Reactor Light Antimatter Reactor Propulsion VTOL Module Leg Aluminum Leg Hover Unit Hover Unit Flight Unit VTOL Module Utility 0b10 Decoder Chip [Generic] Device Advanced Sensor Array Storage Advanced Energy Well Processor 0b10 Decoder Chip [Generic] Hackware Hacking Suite Protection Experimental Utility Shielding Weapon Makeshift Spear Energy Gun Particle Gun Launcher Rocket Launcher Impact Weapon Core Stripper Slashing Weapon Makeshift Sword Piercing Weapon Makeshift Spear Build | -11 -10 -10 -9 -9 -7 -6 -6 -6 -6 -5 -5 -5 -5 -5 -5 -4 -4 -4 -3 -3 -3 -2 -2 ------- Run | Yrd Mat Min Mat Min Zio Pro Fac Low Low Fac Was Fac Upp Upp Zhi Pro Fac Ext Res Qua Sec Res Tes Slots Evolved 19 | 4 2 . 2 . 1 1 2 . . 1 . . 1 . . 1 1 1 1 . . 1 . Power 2 | . 1 . . . . . . . . . . . . . . . . 1 . . . . . Propulsion 7 | 2 1 . . . . 1 1 . . . . . . . . . 1 . . . . 1 . Utility 9 | 1 . . 2 . 1 . 1 . . 1 . . 1 . . 1 . . 1 . . . . Weapon 1 | 1 . . . . . . . . . . . . . . . . . . . . . . . Parts Attached 105 | 8 9 . 3 1 9 3 4 2 . 2 . 6 2 1 3 1 2 8 15 11 4 3 8 Power 15 | 1 1 . 1 . . 1 . . . . . 2 . . . 1 . 3 2 1 . 1 1 Engine 4 | 1 1 . 1 . . . . . . . . . . . . . . 1 . . . . . Core 4 | . . . . . . 1 . . . . . 1 . . . 1 . 1 . . . . . Reactor 7 | . . . . . . . . . . . . 1 . . . . . 1 2 1 . 1 1 Propulsion 21 | 2 5 . . . . 1 1 . . . . 1 . . . . 2 2 3 2 1 . 1 Treads . | . . . . . . . . . . . . . . . . . . . . . . . . Leg 2 | 2 . . . . . . . . . . . . . . . . . . . . . . . Wheel . | . . . . . . . . . . . . . . . . . . . . . . . . Hover 1 | . 1 . . . . . . . . . . . . . . . . . . . . . . Flight 18 | . 4 . . . . 1 1 . . . . 1 . . . . 2 2 3 2 1 . 1 Utility 57 | 3 1 . 2 . 5 1 3 1 . 2 . 3 2 1 3 . . 3 10 6 3 2 6 Device 39 | 1 1 . 1 . 1 . 2 1 . 1 . 3 2 1 1 . . 3 7 6 1 2 5 Storage 2 | . . . . . . . . . . . . . . . 1 . . . . . . . 1 Processor 11 | 1 . . 1 . 4 1 1 . . . . . . . . . . . 2 . 1 . . Hackware 2 | . . . . . . . . . . 1 . . . . . . . . 1 . . . . Protection 3 | 1 . . . . . . . . . . . . . . 1 . . . . . 1 . . Artifact . | . . . . . . . . . . . . . . . . . . . . . . . . Weapon 12 | 2 2 . . 1 4 . . 1 . . . . . . . . . . . 2 . . . Energy Gun 6 | 2 2 . . . 2 . . . . . . . . . . . . . . . . . . Energy Cannon . | . . . . . . . . . . . . . . . . . . . . . . . . Ballistic Gun . | . . . . . . . . . . . . . . . . . . . . . . . . Ballistic Cannon . | . . . . . . . . . . . . . . . . . . . . . . . . Launcher 1 | . . . . 1 . . . . . . . . . . . . . . . . . . . Special Weapon . | . . . . . . . . . . . . . . . . . . . . . . . . Impact Weapon 1 | . . . . . . . . . . . . . . . . . . . . 1 . . . Slashing Weapon 2 | . . . . . 1 . . 1 . . . . . . . . . . . . . . . Piercing Weapon 2 | . . . . . 1 . . . . . . . . . . . . . . 1 . . . Special Melee Weapon . | . . . . . . . . . . . . . . . . . . . . . . . . Unidentified Prototypes 35 | . . . . . 5 . 1 . . . . 2 . . 5 . . . 3 8 3 1 7 Parts Lost 4 | . . . . . 1 . . . . . . . 1 . . . . . . . . 1 1 Power . | . . . . . . . . . . . . . . . . . . . . . . . . Propulsion . | . . . . . . . . . . . . . . . . . . . . . . . . Utility 4 | . . . . . 1 . . . . . . . 1 . . . . . . . . 1 1 Weapon . | . . . . . . . . . . . . . . . . . . . . . . . . Highest Loss Streak 1 | . . . . . 1 . . . . . . . 1 . . . . . . . . 1 1 To Critical Strikes 1 | . . . . . . . . . . . . . . . . . . . . . . . 1 Average Backups 1 | . 1 . . 1 1 3 2 1 2 1 3 3 2 . 1 1 1 2 3 2 1 1 1 Power . | . . . . . . . . . . . . . . . . . . . . . . . . Propulsion . | . 1 . . . . . . . . . . . . . . . . 2 1 . . . . Utility 1 | . . . . . . 1 2 1 1 1 3 3 2 . 1 1 . . 1 . 1 . 1 Weapon . | . . . . 1 1 1 . . . . . . . . . . . . . . . . . Tool/Special . | . . . . . . . . . . . . . . . . . . . . . . . . Unused Backups 8 | . 2 1 . . 1 . . . . . . 2 1 . . . . . . 1 . . . Power 2 | . 2 . . . . . . . . . . . . . . . . . . . . . . Propulsion . | . . . . . . . . . . . . . . . . . . . . . . . . Utility 4 | . . 1 . . . . . . . . . 2 1 . . . . . . . . . . Weapon 1 | . . . . . 1 . . . . . . . . . . . . . . . . . . Tool/Special 1 | . . . . . . . . . . . . . . . . . . . . 1 . . . Average Slot Usage (%) 95 | . 87 100 97 100 92 92 92 99 100 100 100 100 100 100 97 99 95 97 99 93 89 89 90 Engine 4 | . 12 20 16 16 15 9 6 6 6 5 5 3 . . . . . . . . . . . Core 2 | . . . . . . 4 6 6 6 5 5 5 5 5 5 5 5 4 4 . . . . Reactor 4 | . . . . . . . . . . . . 1 5 5 5 5 5 6 9 12 13 13 12 Flight 32 | . 23 40 33 33 30 33 31 37 37 35 35 35 34 33 33 31 30 32 31 31 31 30 33 Device 24 | . 18 20 21 25 20 14 17 23 25 23 23 23 24 27 24 25 25 23 25 29 26 30 33 Processor 9 | . . . 7 8 10 14 18 13 12 11 11 11 11 11 11 10 10 9 9 9 9 8 6 Hackware 1 | . . . . . . . . . . 4 5 5 5 5 5 5 5 4 4 . . . . Protection 1 | . 3 . . . . . . . . . . . . . . 4 5 4 4 4 4 2 . Energy Gun 4 | . 21 20 16 15 10 7 6 3 . . . . . . . . . . . . . . . Slashing Weapon 2 | . . . . . . . . 2 6 5 5 5 5 5 5 5 5 4 4 . . . . Piercing Weapon 3 | . . . . . 3 7 6 6 6 5 5 5 5 5 5 5 5 4 4 . . . . Peak Build Rating 191 | 7 16 16 22 22 40 40 47 45 42 47 47 63 68 69 73 77 84 107 138 169 170 174 191 Average Rating 80 | 4 11 16 20 21 30 34 42 42 41 44 47 53 64 68 67 74 76 97 124 160 162 169 177 On Entrance 63 | . 7 16 16 22 22 31 39 45 42 41 47 47 63 68 69 65 76 84 106 138 161 162 166 Avg Prop Armor Cover (%) . | . . . . . . . . . . . . . . . . . . . . . . . . Naked Turns . | . . . . . . . . . . . . . . . . . . . . . . . . Heaviest Build 94 | 11 16 16 20 21 24 21 29 30 27 27 27 34 36 36 35 36 34 42 47 74 74 84 94 Greatest Support 92 | 25 25 21 21 21 26 30 40 40 40 40 40 42 42 42 42 42 47 49 61 74 85 85 92 Greatest Overweight (x) 1 | . . . . . . . . . . . . . . . . . . . . 1 . . 1 Average Overweight (x) . | . . . . . . . . . . . . . . . . . . . . . . . . Largest Inventory Capacity 5 | 2 2 2 3 3 4 4 4 4 4 4 4 4 4 4 4 4 4 4 4 5 5 5 5 Average Capacity 3 | 1 2 2 2 3 3 4 4 4 4 4 4 4 4 4 4 4 4 4 4 4 5 5 5 Most Carried 5 | 1 2 2 3 3 4 4 4 4 4 4 4 4 4 3 4 4 4 4 4 5 5 5 5 Average Carried 3 | . 1 1 1 3 3 3 3 3 4 3 3 3 2 2 2 2 2 2 3 4 4 3 3 Final Capacity 5 | 2 2 2 3 3 4 4 4 4 4 4 4 4 4 4 4 4 4 4 4 5 5 5 5 Final Carried 5 | 1 2 2 3 3 4 4 3 4 4 3 4 4 3 2 4 2 2 3 4 5 3 4 3 Class Distribution -------------------- 51% | Hacker-Ninja 22% | Hacker-Scout 15% | Alien-Ninja 7% | Infiltrator-Ninja Dominant Class ---------------- Hacker-Scout | -10/Materials Hacker-Scout | -10/Mines Hacker-Scout | -9/Materials Hacker-Scout | -9/Mines Hacker-Scout | -7/Zion Hacker-Scout | -6/Proximity Caves Hacker-Ninja | -6/Factory Hacker-Ninja | -6/Lower Caves Hacker-Ninja | -6/Lower Caves Hacker-Ninja | -5/Factory Hacker-Ninja | -5/Waste Hacker-Ninja | -5/Factory Hacker-Ninja | -5/Upper Caves Hacker-Ninja | -5/Upper Caves Hacker-Ninja | -5/Zhirov Hacker-Ninja | -4/Proximity Caves Hacker-Ninja | -4/Factory Hacker-Ninja | -4/Extension Hacker-Ninja | -3/Research Infiltrator-Ninja | -3/Quarantine Alien-Ninja | -3/Section 7 Alien-Ninja | -2/Research Alien-Ninja | -2/Testing Resources | -11 -10 -10 -9 -9 -7 -6 -6 -6 -6 -5 -5 -5 -5 -5 -5 -4 -4 -4 -3 -3 -3 -2 -2 ----------- Run | Yrd Mat Min Mat Min Zio Pro Fac Low Low Fac Was Fac Upp Upp Zhi Pro Fac Ext Res Qua Sec Res Tes Matter Collected 1848 | 145 235 . 40 . 90 60 40 20 10 10 10 40 50 10 60 20 10 94 218 320 44 172 150 Remotely . | . . . . . . . . . . . . . . . . . . . . . . . . Salvage Created 4189 | . 190 . 60 . . 68 223 . . 276 . 400 123 93 128 194 59 555 254 457 306 648 155 Parts 146 | . 14 1 6 . . 4 12 3 . 8 . 13 10 1 . 4 4 23 12 5 8 16 2 Haulers Intercepted 5 | . 2 . . . . . . . . . . 3 . . . . . . . . . . . Recyclers Shooed 2 | . . 1 1 . . . . . . . . . . . . . . . . . . . . Parts Field Recycled . | . . . . . . . . . . . . . . . . . . . . . . . . Retrieved Matter . | . . . . . . . . . . . . . . . . . . . . . . . . Parts Self-Destructed . | . . . . . . . . . . . . . . . . . . . . . . . . Prevented . | . . . . . . . . . . . . . . . . . . . . . . . . Parts Restored . | . . . . . . . . . . . . . . . . . . . . . . . . Kills | -11 -10 -10 -9 -9 -7 -6 -6 -6 -6 -5 -5 -5 -5 -5 -5 -4 -4 -4 -3 -3 -3 -2 -2 ------- Run | Yrd Mat Min Mat Min Zio Pro Fac Low Low Fac Was Fac Upp Upp Zhi Pro Fac Ext Res Qua Sec Res Tes Combat Hostiles Destroyed 34 | . 4 1 1 . . 3 3 2 . 2 . . 3 . . 2 . 5 . 1 . 5 2 Melee 23 | . . . . . . 3 3 2 . 2 . . 3 . . 2 . 5 . . . 3 . Guns 6 | . 4 1 1 . . . . . . . . . . . . . . . . . . . . Classes Destroyed 12 | . 4 . . . . . . . . 2 . . 2 . . 1 . . . 2 1 . . Hauler 5 | . 2 . . . . . . . . . . 3 . . . . . . . . . . . Recycler 1 | . . . . . . . . . . . . . . . . . . . . . 1 . . Operator 9 | . . . . . . . . . . 1 . 2 . . . . 1 2 2 . . 1 . Watcher 23 | . 3 . 1 . . . 4 . . 2 . 1 . . . . 1 2 5 1 . 2 1 Swarmer 10 | . 2 . . . . 3 3 2 . . . . . . . . . . . . . . . Grunt 7 | . 2 1 1 . . . . . . 1 . . 1 . . . . 1 . . . . . Brawler 2 | . . . . . . . . . . . . . 1 . . . . . . . . . 1 Researcher 4 | . . . . . . . . . . . . . . . . . . . . 1 3 . . Sentry 10 | . . . . . . . . . . 1 . . . . . 1 . 3 . . . 5 . Hunter 1 | . . . . . . . . . . . . . 1 . . . . . . . . . . Programmer 2 | . . . . . . . . . . . . . . . . 1 . 1 . . . . . Fortress 1 | . . . . . . . . . . . . . . . . . . . . 1 . . . Protovariant H 1 | . . . . . . . . . . . . . . . . . . . . . . . 1 Best Kill Streak 5 | . 5 1 1 . . 3 3 2 . 2 . 3 3 . . 1 1 4 2 1 1 2 1 Combat Bots Only 3 | . 2 1 1 . . 3 3 2 . 2 . . 3 . . 1 . 1 . 1 . 2 1 Max Kills in Single Turn 1 | . 1 1 1 . . 1 1 1 . 1 . 1 1 . . 1 1 1 1 1 1 1 1 Gunslinging . | . . . . . . . . . . . . . . . . . . . . . . . . Exploded . | . . . . . . . . . . . . . . . . . . . . . . . . Melee 1 | . . . . . . 1 1 1 . 1 . . 1 . . 1 . 1 . . . 1 . Uniques/NPCs Destroyed . | . . . . . . . . . . . . . . . . . . . . . . . . Combat | -11 -10 -10 -9 -9 -7 -6 -6 -6 -6 -5 -5 -5 -5 -5 -5 -4 -4 -4 -3 -3 -3 -2 -2 -------- Run | Yrd Mat Min Mat Min Zio Pro Fac Low Low Fac Was Fac Upp Upp Zhi Pro Fac Ext Res Qua Sec Res Tes Hostile Shots Fired 557 | . 20 3 5 . . 22 33 25 4 41 1 19 20 9 . 27 18 33 50 18 90 27 92 Missed 274 | . 6 1 2 . . 9 18 14 3 19 1 11 7 2 . 17 10 15 38 10 58 13 20 Hits 283 | . 14 2 3 . . 13 15 11 1 22 . 8 13 7 . 10 8 18 12 8 32 14 72 Melee 43 | . . . . . . . . . . . . . 3 . . . . . . . . . 40 Projectile 240 | . 14 2 3 . . 13 15 11 1 22 . 8 10 7 . 10 8 18 12 8 32 14 32 AOE 2 | . . . . . . . . . . . . 1 . . . . . . . . . . 1 Critical Strikes 16 | . 1 . . . . . . 1 . 1 . . . . . . . . . 1 . . 12 Actively Blocked 1 | . . . . . . . . . . . . . . . . . . . . 1 . . . Part Disruptions 1 | . . . . . . . . . . . . . . . . . . . . . 1 . . Damage Taken 3103 | . 91 12 25 . . 93 74 116 7 270 . 138 224 92 . 115 80 240 105 88 184 172 977 Core 2312 | . 69 10 23 . . 74 59 90 5 217 . 106 178 75 . 93 50 147 54 63 129 110 760 Absorbed by Shields 836 | . . . . . . . 23 . . . . . . . . . . 24 35 33 200 179 342 Redirected to Core 1826 | . 60 4 5 . . 56 38 79 5 169 . 106 159 51 . 66 37 93 54 48 88 87 621 Redirected to Shielding 170 | . . . . . . . . . . . . . . . . . 19 62 30 8 20 31 . Ignored by Resistances 2488 | . 63 8 16 . . 58 66 69 5 157 . 81 127 55 . 78 55 177 100 76 270 246 781 Core Remaining (%) 91 | 100 . 100 . . . 100 . . 98 . . . . . . 88 . 91 . . 65 . . Volleys Fired 42 | . 29 3 9 . . 1 . . . . . . . . . . . . . . . . . Largest 2 | . 2 2 2 . . 1 . . . . . . . . . . . . . . . . . Hottest 130 | . 130 130 130 . . 81 . . . . . . . . . . . . . . . . . Shots Fired 83 | . 58 6 18 . . 1 . . . . . . . . . . . . . . . . . Gun 83 | . 58 6 18 . . 1 . . . . . . . . . . . . . . . . . Cannon . | . . . . . . . . . . . . . . . . . . . . . . . . Launcher . | . . . . . . . . . . . . . . . . . . . . . . . . Special . | . . . . . . . . . . . . . . . . . . . . . . . . Kinetic . | . . . . . . . . . . . . . . . . . . . . . . . . Thermal 71 | . 46 6 18 . . 1 . . . . . . . . . . . . . . . . . Explosive . | . . . . . . . . . . . . . . . . . . . . . . . . Electromagnetic 12 | . 12 . . . . . . . . . . . . . . . . . . . . . . Robot Hit Streak 20 | . 20 6 6 . . . . . . . . . . . . . . . . . . . . Robot Miss Streak 4 | . 4 1 2 . . . . . . . . . . . . . . . . . . . . Penetration Max . | . . . . . . . . . . . . . . . . . . . . . . . . Secondary Targets . | . . . . . . . . . . . . . . . . . . . . . . . . Shots Hit Robots 210 | . 40 4 12 . . 7 10 6 . 17 . 17 7 1 2 11 5 23 13 3 4 15 13 Core Hits 78 | . 13 2 3 . . 4 7 2 . 4 . 6 4 1 2 3 1 10 6 1 3 5 1 Critical Kills . | . . . . . . . . . . . . . . . . . . . . . . . . Critical Parts Destroyed . | . . . . . . . . . . . . . . . . . . . . . . . . Critical Strikes 9 | . 1 . 1 . . . . . . 2 . 1 1 . . 1 1 . 1 . . . . Burn 2 | . 1 . 1 . . . . . . . . . . . . . . . . . . . . Sever 6 | . . . . . . . . . . 2 . 1 1 . . . 1 . 1 . . . . Impale 1 | . . . . . . . . . . . . . . . . 1 . . . . . . . Melee Attacks 199 | . . . . . . 8 11 8 . 20 . 22 9 1 2 12 8 25 18 14 9 16 16 Kinetic 52 | . . . . . . . . . . . . . . . . . . . . 11 9 16 16 Impact . | . . . . . . . . . . . . . . . . . . . . . . . . Slashing 106 | . . . . . . . . 5 . 18 . 17 8 1 2 10 7 20 16 2 . . . Piercing 41 | . . . . . . 8 11 3 . 2 . 5 1 . . 2 1 5 2 1 . . . Sneak Attacks 20 | . . . . . . . . . . 3 . 5 1 . . . . 3 1 1 4 1 1 Combat Hostiles 3 | . . . . . . . . . . . . . 1 . . . . 2 . . . . . Follow-up Attacks 11 | . . . . . . . . 1 . 1 . 4 . . . 1 . 4 . . . . . Damage Inflicted 9098 | . 606 73 204 . . 277 453 256 . 911 . 993 342 81 145 493 241 1199 714 101 458 791 760 Guns 883 | . 606 73 204 . . . . . . . . . . . . . . . . . . . . Cannons . | . . . . . . . . . . . . . . . . . . . . . . . . Explosions . | . . . . . . . . . . . . . . . . . . . . . . . . Melee 8215 | . . . . . . 277 453 256 . 911 . 993 342 81 145 493 241 1199 714 101 458 791 760 Ramming . | . . . . . . . . . . . . . . . . . . . . . . . . Kinetic 2009 | . . . . . . . . . . . . . . . . . . . . . 458 791 760 Thermal 779 | . 502 73 204 . . . . . . . . . . . . . . . . . . . . Explosive . | . . . . . . . . . . . . . . . . . . . . . . . . Electromagnetic 104 | . 104 . . . . . . . . . . . . . . . . . . . . . . Impact . | . . . . . . . . . . . . . . . . . . . . . . . . Slashing 5051 | . . . . . . . . 216 . 875 . 810 342 81 145 465 241 1061 714 101 . . . Piercing 1155 | . . . . . . 277 453 40 . 36 . 183 . . . 28 . 138 . . . . . Highest Corruption 7 | . . . . . . . . . . . . . . . . . . 1 7 7 2 . . Average Corruption 2 | . . . . . . . . . . . . . . . . . . 1 4 3 2 . . Corruption Purged . | . . . . . . . . . . . . . . . . . . . . . . . . Corruption Blocked . | . . . . . . . . . . . . . . . . . . . . . . . . Effects 11 | . . . . . . . . . . . . . . . . . . 2 2 2 5 . . Message Errors 3 | . . . . . . . . . . . . . . . . . . 2 1 . . . . Matter Fused 3 | . . . . . . . . . . . . . . . . . . . 1 . 2 . . Heat Flow Errors 3 | . . . . . . . . . . . . . . . . . . . . 1 2 . . Data Loss (major) 1 | . . . . . . . . . . . . . . . . . . . . . 1 . . Alerts 1 | . . . . . . . . . . . . . . . . . . . . 1 . . . Overload Shots . | . . . . . . . . . . . . . . . . . . . . . . . . Overflow Damage 770 | . . . . . . 5 25 12 . 181 . 105 28 . . 19 42 198 65 . . 74 16 Projectiles . | . . . . . . . . . . . . . . . . . . . . . . . . Explosions . | . . . . . . . . . . . . . . . . . . . . . . . . Melee 770 | . . . . . . 5 25 12 . 181 . 105 28 . . 19 42 198 65 . . 74 16 Knockbacks . | . . . . . . . . . . . . . . . . . . . . . . . . Impact . | . . . . . . . . . . . . . . . . . . . . . . . . Kinetic . | . . . . . . . . . . . . . . . . . . . . . . . . Secondary . | . . . . . . . . . . . . . . . . . . . . . . . . Self-Inflicted Damage . | . . . . . . . . . . . . . . . . . . . . . . . . Shots . | . . . . . . . . . . . . . . . . . . . . . . . . Rammed . | . . . . . . . . . . . . . . . . . . . . . . . . Targets Rammed . | . . . . . . . . . . . . . . . . . . . . . . . . Kicked . | . . . . . . . . . . . . . . . . . . . . . . . . Crushed . | . . . . . . . . . . . . . . . . . . . . . . . . Highest Temperature 332 | . 324 146 24 . . 16 . 162 . . . . . . . . . . 332 207 161 . . Average Temperature 94 | . 99 75 11 . . 14 . 102 . . . . . . . . . . 166 146 75 . . Received Heat Transfer 874 | . 72 12 18 . . 9 28 242 . 144 . 66 66 45 . 9 18 45 21 20 39 20 . Effects 1 | . 1 . . . . . . . . . . . . . . . . . . . . . . Damage (minor) 1 | . 1 . . . . . . . . . . . . . . . . . . . . . . Siege Activations . | . . . . . . . . . . . . . . . . . . . . . . . . Martial Activations . | . . . . . . . . . . . . . . . . . . . . . . . . Shielding Activations . | . . . . . . . . . . . . . . . . . . . . . . . . Robots Disrupted . | . . . . . . . . . . . . . . . . . . . . . . . . Combat Hostiles . | . . . . . . . . . . . . . . . . . . . . . . . . Robots Corrupted . | . . . . . . . . . . . . . . . . . . . . . . . . Combat Hostiles . | . . . . . . . . . . . . . . . . . . . . . . . . Parts Fried . | . . . . . . . . . . . . . . . . . . . . . . . . Impact Corruptions . | . . . . . . . . . . . . . . . . . . . . . . . . Robots Melted . | . . . . . . . . . . . . . . . . . . . . . . . . Combat Hostiles . | . . . . . . . . . . . . . . . . . . . . . . . . Parts Melted 6 | . 5 1 . . . . . . . . . . . . . . . . . . . . . Heat Transferred 2035 | . 1295 185 555 . . . . . . . . . . . . . . . . . . . . Parts Sabotaged 3 | . . . . . . . . . . . . . . . . . . . . . . . 3 Parts Stolen . | . . . . . . . . . . . . . . . . . . . . . . . . Parts Stripped 80 | . . . . . . . . . . . . . . . . . . . . 22 12 27 19 Power Chain Reactions . | . . . . . . . . . . . . . . . . . . . . . . . . Alert | -11 -10 -10 -9 -9 -7 -6 -6 -6 -6 -5 -5 -5 -5 -5 -5 -4 -4 -4 -3 -3 -3 -2 -2 ------- Run | Yrd Mat Min Mat Min Zio Pro Fac Low Low Fac Was Fac Upp Upp Zhi Pro Fac Ext Res Qua Sec Res Tes Maximum Alert Level 5 | . . . . . . . . . . . . . . . . . . . . . 5 4 2 Low Security (%) 83 | 100 100 100 100 100 . . 100 . . 100 100 100 . . . . 100 100 100 100 79 . 9 Level 1 3 | . . . . . . . . . . . . . . . . . . . . . . . 61 Level 2 1 | . . . . . . . . . . . . . . . . . . . . . . . 29 Level 3 8 | . . . . . . . . . . . . . . . . . . . . . . 93 . Level 4 . | . . . . . . . . . . . . . . . . . . . . . . 6 . Level 5 . | . . . . . . . . . . . . . . . . . . . . . . . . High Security . | . . . . . . . . . . . . . . . . . . . . . . . . Max Security 1 | . . . . . . . . . . . . . . . . . . . . . 20 . . Peak Influence 1638 | . 100 23 42 1 . . 70 . . 39 58 98 . . . . 80 99 125 77 1638 1100 442 Initial 1100 | . . 23 . 1 . . 7 . . . . 10 . . . . 14 18 26 46 . 1100 442 Average 154 | . 11 5 16 . . . 10 . . 10 14 37 . . . . 30 25 22 23 367 1059 279 Influence Increases 2643 | . 193 20 87 . . 105 107 50 . 90 60 313 80 5 . 50 172 404 350 152 188 182 35 Destroy 0b10 Robot/C 980 | . 80 20 60 . . 60 60 40 . 40 . 60 60 . . 40 . 200 20 40 80 100 20 Destroy 0b10 Robot/NC 210 | . 25 . 5 . . 5 20 . . 15 . 35 . 5 . . 10 20 40 5 5 15 5 Destroy Leader 266 | . 30 . 22 . . 10 18 10 . 14 . 18 20 . . 10 2 34 20 2 . 54 2 Allied During Kill 28 | . . . . . . . . . . . . 5 . . . . . 21 1 . 1 . . Trap Triggered on 0b10 60 | . . . . . . . . . . . . . . . . . . . . 60 . . . Successful Hack 247 | . 12 . . . . . 8 . . . . 39 . . . . 53 22 51 23 29 10 . Disable Machine 64 | . . . . . . . . . . 4 . 12 . . . . . . 4 16 20 . 8 Destroy Structure 203 | . 1 . . . . . 1 . . 2 60 114 . . . . 2 2 4 6 8 3 . Partial Spotted 270 | . 15 . . . . . . . . 15 . 30 . . . . 105 15 45 . 45 . . Lose Combat Pursuer 315 | . 30 . . . . 30 . . . . . . . . . . . 90 165 . . . . Influence Decreases 4455 | . 108 105 80 7 . 90 67 70 35 90 40 287 126 5 . 20 152 385 309 262 135 1182 900 Entered New Map 1860 | . . 62 . 6 . . 8 29 13 . . 10 25 . . . 16 32 43 64 . 947 605 Time Decay 1884 | . 108 43 60 1 . 90 59 41 22 81 . 133 91 5 . 20 64 258 156 157 135 225 135 Lost Part 30 | . . . . . . . . . . . . . 10 . . . . . . . . 10 10 Lost Ally 197 | . . . 20 . . . . . . . 40 60 . . . . . 27 50 . . . . Purge Threat 484 | . . . . . . . . . . 9 . 84 . . . . 72 68 60 41 . . 150 Squads Dispatched 28 | . . 1 . . . . 1 . . 2 . 3 . . . . 2 . 4 1 10 3 1 Investigation 6 | . . 1 . . . . . . . . . 1 . . . . 1 . 2 . 1 . . Extermination 6 | . . . . . . . 1 . . . . . . . . . 1 . 2 1 . 1 . Reinforcement 9 | . . . . . . . . . . 2 . 2 . . . . . . . . 3 2 . Assault 7 | . . . . . . . . . . . . . . . . . . . . . 6 . 1 Garrison . | . . . . . . . . . . . . . . . . . . . . . . . . Intercept . | . . . . . . . . . . . . . . . . . . . . . . . . Searches Triggered . | . . . . . . . . . . . . . . . . . . . . . . . . Construction Impeded . | . . . . . . . . . . . . . . . . . . . . . . . . Haulers Reinforced 3 | . . . . . . . . . . 1 . 2 . . . . . . . . . . . Active Scanning Responses . | . . . . . . . . . . . . . . . . . . . . . . . . Cargo Convoy Interrupts . | . . . . . . . . . . . . . . . . . . . . . . . . Stealth | -11 -10 -10 -9 -9 -7 -6 -6 -6 -6 -5 -5 -5 -5 -5 -5 -4 -4 -4 -3 -3 -3 -2 -2 --------- Run | Yrd Mat Min Mat Min Zio Pro Fac Low Low Fac Was Fac Upp Upp Zhi Pro Fac Ext Res Qua Sec Res Tes Distress Signals 11 | . 1 . 2 . . . . . . 1 . 2 . . . . 1 1 2 . 1 . . Communications Jammed 89 | . . . . . . . . . . . . . . . . . . . 2 20 2 10 55 Distress Signals 89 | . . . . . . . . . . . . . . . . . . . 2 20 2 10 55 Times Spotted 274 | . 8 1 8 . . 6 10 11 8 24 7 23 11 6 . 9 6 16 25 17 47 17 14 Peak Tracking Total 15 | . 3 1 5 . . 3 6 5 3 7 5 8 4 2 . 4 2 4 15 7 12 4 7 Tactical Retreats 54 | . 1 . . . . 1 1 4 2 5 1 4 3 4 . 3 2 4 3 2 7 4 3 ECM-based Alert Blocks 116 | . . . . . . . 1 10 6 12 . 13 8 4 . 7 3 . . 9 28 9 6 Traps | -11 -10 -10 -9 -9 -7 -6 -6 -6 -6 -5 -5 -5 -5 -5 -5 -4 -4 -4 -3 -3 -3 -2 -2 ------- Run | Yrd Mat Min Mat Min Zio Pro Fac Low Low Fac Was Fac Upp Upp Zhi Pro Fac Ext Res Qua Sec Res Tes Traps Triggered 6 | . 1 . . . . . 1 . . 1 . 1 . . . . . . . 1 . 1 . Indirectly . | . . . . . . . . . . . . . . . . . . . . . . . . Trap Hack Attempts . | . . . . . . . . . . . . . . . . . . . . . . . . Triggered . | . . . . . . . . . . . . . . . . . . . . . . . . Disarmed 6 | . . . . . . . . . . . . . . . . . . 6 . . . . . Reprogrammed 16 | . . . . . . . . . . . . 6 . . . . . . 4 6 . . . Reused 6 | . . . . . . . . . . . . . . . . . . . . 6 . . . Traps Extracted . | . . . . . . . . . . . . . . . . . . . . . . . . Installed . | . . . . . . . . . . . . . . . . . . . . . . . . Triggered 6 | . . . . . . . . . . . . . . . . . . . . 6 . . . Machines | -11 -10 -10 -9 -9 -7 -6 -6 -6 -6 -5 -5 -5 -5 -5 -5 -4 -4 -4 -3 -3 -3 -2 -2 ---------- Run | Yrd Mat Min Mat Min Zio Pro Fac Low Low Fac Was Fac Upp Upp Zhi Pro Fac Ext Res Qua Sec Res Tes Machines Disabled 18 | . . . . . . . . 1 . 1 . 3 . . . . . . 1 4 6 . 2 Max in Single Turn 1 | . . . . . . . . 1 . 1 . 1 . . . . . . 1 1 1 . 1 Garrison Access 6 | . . . . . . . . . . 2 . 2 . . . . . . 1 . . . 1 Machines Repaired . | . . . . . . . . . . . . . . . . . . . . . . . . Machines Dismantled . | . . . . . . . . . . . . . . . . . . . . . . . . Machines Sabotaged . | . . . . . . . . . . . . . . . . . . . . . . . . Overloaded Fab Kills . | . . . . . . . . . . . . . . . . . . . . . . . . Hacking | -11 -10 -10 -9 -9 -7 -6 -6 -6 -6 -5 -5 -5 -5 -5 -5 -4 -4 -4 -3 -3 -3 -2 -2 --------- Run | Yrd Mat Min Mat Min Zio Pro Fac Low Low Fac Was Fac Upp Upp Zhi Pro Fac Ext Res Qua Sec Res Tes Machines Accessed 86 | . 3 1 1 . 1 . 4 . . 4 . 10 1 2 5 1 8 10 11 9 6 6 3 Terminals 60 | . 3 . 1 . . . 2 . . 2 . 7 . 1 . 1 6 10 8 7 6 4 2 Fabricators 2 | . . . . . . . 1 . . . . . . . . . . . 1 . . . . Repair Stations 1 | . . . . . . . . . . . . . . . . . . . . . . 1 . Recycling Units . | . . . . . . . . . . . . . . . . . . . . . . . . Scanalyzers 7 | . . . . . . . 1 . . . . 1 . . . . 2 . 1 2 . . . Garrison Access 7 | . . . . . . . . . . 2 . 2 . . . . . . 1 . . 1 1 Total Hacks 192 | . 7 1 2 . 3 . 11 . . 7 . 25 1 4 14 2 25 20 17 19 13 12 9 Successful 112 | . 2 1 2 . 3 . 5 . . 4 . 16 1 4 14 2 16 12 9 6 7 2 6 Failed 80 | . 5 . . . . . 6 . . 3 . 9 . . . . 9 8 8 13 6 10 3 Catastrophic 11 | . . . . . . . 1 . . . . . . . . . . . 2 4 1 3 . Database Lockouts . | . . . . . . . . . . . . . . . . . . . . . . . . Manual 65 | . 3 . 2 . . . 3 . . 2 . 9 . . . . 18 8 1 5 5 7 2 Terminals 136 | . 7 . 2 . . . 4 . . 4 . 20 . 3 . 2 19 20 13 13 13 9 7 Fabricators 3 | . . . . . . . 2 . . . . . . . . . . . 1 . . . . Repair Stations 1 | . . . . . . . . . . . . . . . . . . . . . . 1 . Recycling Units . | . . . . . . . . . . . . . . . . . . . . . . . . Scanalyzers 20 | . . . . . . . 5 . . . . 1 . . . . 6 . 2 6 . . . Garrison Access 12 | . . . . . . . . . . 3 . 4 . . . . . . 1 . . 2 2 Terminal Hacks 75 | . 1 1 . . 3 . . . . 2 . 7 1 4 14 2 5 12 6 3 7 2 5 Record 10 | . . . . . . . . . . . . . . 3 5 2 . . . . . . . Part Schematic 4 | . . . . . 3 . . . . . . . . . 1 . . . . . . . . Robot Analysis 5 | . 1 . . . . . . . . . . . . . 4 . . . . . . . . Prototype ID Bank 6 | . . . . . . . . . . . . . . . 4 . 1 . . . . 1 . Open Door 13 | . . 1 . . . . . . . . . . 1 1 . . . 6 1 1 2 . . Level Access Points 2 | . . . . . . . . . . . . . . . . . . . 1 . 1 . . Branch Access Points 3 | . . . . . . . . . . . . 1 . . . . 1 . . . 1 . . Emergency Access Points 5 | . . . . . . . . . . . . 2 . . . . . . . . 1 1 1 Terminal Index 1 | . . . . . . . . . . . . 1 . . . . . . . . . . . Unreport Threat 14 | . . . . . . . . . . 2 . 2 . . . . 3 3 2 1 . . 1 Locate Traps 2 | . . . . . . . . . . . . . . . . . . 1 . . 1 . . Disarm Traps 3 | . . . . . . . . . . . . . . . . . . 2 1 . . . . Reprogram Traps 3 | . . . . . . . . . . . . 1 . . . . . . 1 1 . . . Protovariant Controls 3 | . . . . . . . . . . . . . . . . . . . . . . . 3 Activate Exoskeleton 1 | . . . . . . . . . . . . . . . . . . . . . 1 . . Fabricator Hacks 3 | . . . . . . . 2 . . . . . . . . . . . 1 . . . . Load Schematic 1 | . . . . . . . 1 . . . . . . . . . . . . . . . . Build 2 | . . . . . . . 1 . . . . . . . . . . . 1 . . . . Repair Station Hacks . | . . . . . . . . . . . . . . . . . . . . . . . . Recycling Unit Hacks . | . . . . . . . . . . . . . . . . . . . . . . . . Scanalyzer 13 | . . . . . . . 3 . . . . 1 . . . . 5 . 1 3 . . . Insert Component 3 | . . . . . . . 1 . . . . . . . . . 2 . . . . . . Analyze 3 | . . . . . . . 1 . . . . . . . . . 2 . . . . . . Retrieve Study 7 | . . . . . . . 1 . . . . 1 . . . . 1 . 1 3 . . . Garrison Access Hacks 6 | . . . . . . . . . . 2 . 2 . . . . . . 1 . . . 1 Seal Access 6 | . . . . . . . . . . 2 . 2 . . . . . . 1 . . . 1 Unauthorized Hacks 15 | . 1 . 2 . . . . . . . . 6 . . . . 6 . . . . . . Terminals 15 | . 1 . 2 . . . . . . . . 6 . . . . 6 . . . . . . Botnet 13 | . . . 1 . . . . . . . . 6 . . . . 6 . . . . . . Operators 2 | . 1 . 1 . . . . . . . . . . . . . . . . . . . . Fabricators . | . . . . . . . . . . . . . . . . . . . . . . . . Repair Stations . | . . . . . . . . . . . . . . . . . . . . . . . . Recycling Units . | . . . . . . . . . . . . . . . . . . . . . . . . Scanalyzers . | . . . . . . . . . . . . . . . . . . . . . . . . Garrison Access . | . . . . . . . . . . . . . . . . . . . . . . . . Data Cores Recovered 10 | . . . . . . . . . . 1 . 3 . . . . 1 2 2 . . 1 . Used 5 | . . . . . . . . . . . . 2 . . . . 1 . 1 . . 1 . Hacking Detections 64 | . 3 . 1 . . . 4 . . 2 . 9 . 1 . 1 7 7 9 9 3 6 2 Full Trace Events 5 | . . . . . . . . . . . . 1 . . . . 1 . 2 . 1 . . Feedback Events 2 | . . . . . . . . . . . . . . . . . . . 2 . . . . Corruption 2 | . . . . . . . . . . . . . . . . . . . 2 . . . . Feedback Blocked . | . . . . . . . . . . . . . . . . . . . . . . . . Robot Schematics Acquired 6 | . . . . . . . . . . . . . . . . . . . . 3 3 . . Robots Built 2 | . . . . . . . . . . . . . . . . . . . 2 . . . . Authchips . | . . . . . . . . . . . . . . . . . . . . . . . . Time 56 | . . . . . . . . . . . . . . . . . . . 56 . . . . Total Robot Build Rating 12 | . . . . . . . . . . . . . . . . . . . 12 . . . . Part Schematics Acquired 17 | . . . . . 3 . 1 . . . . . . . 1 . 1 . . 1 10 . . Parts Built 1 | . . . . . . . 1 . . . . . . . . . . . . . . . . Authchips . | . . . . . . . . . . . . . . . . . . . . . . . . Time 42 | . . . . . . . 42 . . . . . . . . . . . . . . . . Total Part Build Rating 4 | . . . . . . . 4 . . . . . . . . . . . . . . . . Part Studies Acquired 7 | . . . . . . . 1 . . . . 1 . . . . 1 . 1 3 . . . Parts Repaired . | . . . . . . . . . . . . . . . . . . . . . . . . Time . | . . . . . . . . . . . . . . . . . . . . . . . . Parts Recycled . | . . . . . . . . . . . . . . . . . . . . . . . . Recycled Matter . | . . . . . . . . . . . . . . . . . . . . . . . . Retrieved Matter . | . . . . . . . . . . . . . . . . . . . . . . . . Retrieved Components . | . . . . . . . . . . . . . . . . . . . . . . . . Parts Scanalyzed 3 | . . . . . . . 1 . . . . . . . . . 2 . . . . . . Part Schematics Acquired 2 | . . . . . . . 1 . . . . . . . . . 1 . . . . . . Parts Damaged . | . . . . . . . . . . . . . . . . . . . . . . . . Bothacking | -11 -10 -10 -9 -9 -7 -6 -6 -6 -6 -5 -5 -5 -5 -5 -5 -4 -4 -4 -3 -3 -3 -2 -2 ------------ Run | Yrd Mat Min Mat Min Zio Pro Fac Low Low Fac Was Fac Upp Upp Zhi Pro Fac Ext Res Qua Sec Res Tes Used RIF Installer . | . . . . . . . . . . . . . . . . . . . . . . . . Robots Hacked . | . . . . . . . . . . . . . . . . . . . . . . . . Non-combat . | . . . . . . . . . . . . . . . . . . . . . . . . Combat . | . . . . . . . . . . . . . . . . . . . . . . . . Robot Hacks Applied . | . . . . . . . . . . . . . . . . . . . . . . . . Relay Couplers Released . | . . . . . . . . . . . . . . . . . . . . . . . . Fabnet Peak Effective % . | . . . . . . . . . . . . . . . . . . . . . . . . Robots Rewired . | . . . . . . . . . . . . . . . . . . . . . . . . Allies Hacked . | . . . . . . . . . . . . . . . . . . . . . . . . Hacks Repelled . | . . . . . . . . . . . . . . . . . . . . . . . . Allies | -11 -10 -10 -9 -9 -7 -6 -6 -6 -6 -5 -5 -5 -5 -5 -5 -4 -4 -4 -3 -3 -3 -2 -2 -------- Run | Yrd Mat Min Mat Min Zio Pro Fac Low Low Fac Was Fac Upp Upp Zhi Pro Fac Ext Res Qua Sec Res Tes Total Allies 30 | . . 1 . . . . . . . . 18 . . . . . . 8 2 . 1 . . Largest Group 18 | . . 1 1 . . . . . . . 18 4 . . . . . 6 5 . 1 . . Highest-Rated Group 1204 | . . 31 31 . . . . . . . 638 125 . . . . . 347 318 . 1204 . . Highest-Rated Ally 1204 | . . 31 31 . . . . . . . 50 50 . . . . . 159 159 . 1204 . . Total Orders . | . . . . . . . . . . . . . . . . . . . . . . . . Ally Attacks 117 | . . . 9 . . . . . . . 36 18 . . . . . 31 19 . 4 . . Total Damage 4154 | . . . 85 . . . . . . . 1859 531 . . . . . 555 643 . 481 . . Kills 19 | . . . 2 . . . . . . . 4 5 . . . . . 5 2 . 1 . . Allies Corrupted . | . . . . . . . . . . . . . . . . . . . . . . . . Allies Melted 1 | . . . . . . . . . . . . . . . . . . . 1 . . . . Intel | -11 -10 -10 -9 -9 -7 -6 -6 -6 -6 -5 -5 -5 -5 -5 -5 -4 -4 -4 -3 -3 -3 -2 -2 ------- Run | Yrd Mat Min Mat Min Zio Pro Fac Low Low Fac Was Fac Upp Upp Zhi Pro Fac Ext Res Qua Sec Res Tes Active Infowar (turns) 4630 | 55 325 137 122 108 253 135 191 215 104 167 38 206 198 215 55 167 139 455 283 316 248 300 198 Sensors 4466 | . 240 137 122 108 253 135 191 215 104 167 38 206 198 215 55 167 139 455 275 316 248 300 182 Terrain 4324 | 55 325 137 122 108 253 135 191 215 104 167 38 203 198 215 55 167 139 455 283 276 1 300 182 Decoding 3403 | . . . . . . 9 191 215 104 167 38 206 198 215 55 167 139 455 283 316 248 300 97 Cloaking 2322 | . . . . . . . . . . . . . . 199 26 165 139 455 283 316 248 295 196 Jamming 2466 | . . . . . . . . . . . . . 116 215 55 167 139 455 283 316 248 300 172 ECM 2757 | . . . . . . . 167 215 104 167 38 206 198 215 55 167 139 119 2 247 248 300 170 Robot Analysis Total 5 | . 1 . . . . . . . . . . . . . 4 . . . . . . . . Derelict Logs Recovered 15 | . . 1 . 1 2 1 . 2 1 . . . 2 3 . 2 . . . . . . . Drone Launches . | . . . . . . . . . . . . . . . . . . . . . . . . Drone Recoveries . | . . . . . . . . . . . . . . . . . . . . . . . . Decoded 0b10 Intel 62 | . . . . . . . 5 . . 5 1 6 . . . . 3 10 8 7 5 9 3 Traps 6 | . . . . . . . . . . 1 . . . . . . . 1 2 1 1 . . Emergency Access 6 | . . . . . . . . . . . . 1 . . . . . 2 1 . 1 1 . Items 42 | . . . . . . . 5 . . 4 1 3 . . . . 2 6 4 6 2 7 2 Machines 3 | . . . . . . . . . . . . . . . . . 1 . 1 . . . 1 Patrols 1 | . . . . . . . . . . . . . . . . . . . . . 1 . . Guards 4 | . . . . . . . . . . . . 2 . . . . . 1 . . . 1 . Exploration | -11 -10 -10 -9 -9 -7 -6 -6 -6 -6 -5 -5 -5 -5 -5 -5 -4 -4 -4 -3 -3 -3 -2 -2 ------------- Run | Yrd Mat Min Mat Min Zio Pro Fac Low Low Fac Was Fac Upp Upp Zhi Pro Fac Ext Res Qua Sec Res Tes Turns Passed 4655 | 80 325 137 122 108 253 135 191 215 104 167 38 206 198 215 55 167 139 455 283 316 248 300 198 Spaces Moved 13294 | 57 371 292 223 377 821 432 442 699 507 564 149 712 810 621 198 617 575 984 1217 709 787 707 423 Core 2 | 2 . . . . . . . . . . . . . . . . . . . . . . . Treads . | . . . . . . . . . . . . . . . . . . . . . . . . Legs 94 | 55 39 . . . . . . . . . . . . . . . . . . . . . . Wheels . | . . . . . . . . . . . . . . . . . . . . . . . . Hover 61 | . 61 . . . . . . . . . . . . . . . . . . . . . . Flight 13137 | . 271 292 223 377 821 432 442 699 507 564 149 712 810 621 198 617 575 984 1217 709 787 707 423 Fastest Speed 17 | 50 26 26 26 26 26 23 20 20 20 20 20 20 20 20 20 20 17 17 17 19 19 19 17 Average Speed 21 | 117 41 26 26 26 26 23 22 20 20 20 20 20 20 20 20 20 19 17 17 19 19 19 17 Slowest Speed 120 | 120 120 26 26 26 26 26 23 20 20 20 20 20 20 20 20 20 20 17 20 107 19 19 95 Overloaded Moves . | . . . . . . . . . . . . . . . . . . . . . . . . Propulsion Burnouts . | . . . . . . . . . . . . . . . . . . . . . . . . Robots Hopped 28 | . . 2 1 8 . . 1 . . . . . . . . . 1 4 4 . 7 . . Potential Cave-ins . | . . . . . . . . . . . . . . . . . . . . . . . . Cave-ins Triggered . | . . . . . . . . . . . . . . . . . . . . . . . . Teleports 1 | . . . . . . . . . . . . . . . 1 . . . . . . . . Exploration Rate (%) 54 | 5 46 38 22 75 84 67 17 87 70 17 90 30 93 78 62 78 20 97 40 75 65 20 31 Regions Visited 23 Branch Regions 14 Pre-discovered Areas 10 | . . 1 . . 1 . . 1 1 . . . . . 3 3 . . . . . . . Known Exits Taken 20 | 1 1 1 1 . 1 1 1 1 1 . . 1 1 1 1 1 1 1 1 1 1 1 . Unknown Exits Taken 1 | . . . . 1 . . . . . . . . . . . . . . . . . . . Scrap Searched 19 | . . . . . 4 3 . 1 5 . . . 3 3 . . . . . . . . . Spaces Dug 13 | . . . . . . . 1 . . 1 . 3 1 . . . 1 . 2 3 . 1 . Terrain Destroyed 13 | . . . . . . . 1 . . 1 . 3 1 . . . 1 . 2 3 . 1 . Melee 13 | . . . . . . . 1 . . 1 . 3 1 . . . 1 . 2 3 . 1 . Projectile . | . . . . . . . . . . . . . . . . . . . . . . . . AOE . | . . . . . . . . . . . . . . . . . . . . . . . . Terrain Rammed . | . . . . . . . . . . . . . . . . . . . . . . . . Walls Destroyed . | . . . . . . . . . . . . . . . . . . . . . . . . Machines Disabled . | . . . . . . . . . . . . . . . . . . . . . . . . Actions | -11 -10 -10 -9 -9 -7 -6 -6 -6 -6 -5 -5 -5 -5 -5 -5 -4 -4 -4 -3 -3 -3 -2 -2 --------- Run | Yrd Mat Min Mat Min Zio Pro Fac Low Low Fac Was Fac Upp Upp Zhi Pro Fac Ext Res Qua Sec Res Tes Total 14779 | 66 485 346 267 378 860 457 520 769 509 601 156 760 838 711 211 649 592 1248 1269 871 856 841 519 Wait 764 | . 51 47 27 8 15 . 43 42 1 . 7 10 1 75 . 9 2 215 1 62 49 90 9 Move 13217 | 56 370 287 220 361 820 431 439 698 506 563 148 711 809 620 197 616 572 974 1208 708 774 706 423 Hop 25 | . . 2 1 7 . . 1 . . . . . . . . . 1 4 4 . 5 . . Pick Up 47 | 1 7 2 2 . . 3 4 4 1 2 1 1 3 2 . 1 4 2 1 5 . 1 . Fast Attach 97 | 8 9 . 1 1 9 2 1 1 . . . 2 . 1 5 1 . 2 11 19 12 3 9 Attach 47 | . 1 . 2 . 1 . 3 1 . 1 . 1 2 . 1 2 2 3 5 10 1 4 7 Detach 62 | 1 . . 1 . 7 . 1 2 . . . 1 . 1 4 1 1 3 8 14 2 5 10 Swap 20 | . . . 1 . 1 1 1 . . 1 . 4 . . . . . 4 4 2 . 1 . Drop 108 | . 12 2 1 1 5 4 4 3 1 3 . 7 2 4 2 2 3 6 11 23 4 2 6 Fire 42 | . 29 3 9 . . 1 . . . . . . . . . . . . . . . . . Melee 178 | . . . . . . 8 11 6 . 18 . 17 8 1 2 10 7 20 16 13 9 16 16 Ram . | . . . . . . . . . . . . . . . . . . . . . . . . Kick . | . . . . . . . . . . . . . . . . . . . . . . . . Crush . | . . . . . . . . . . . . . . . . . . . . . . . . Escape Stasis 74 | . . . . . . . 12 . . 1 . 6 . . . . . 1 . 15 . . 39 Rewire . | . . . . . . . . . . . . . . . . . . . . . . . . Trap . | . . . . . . . . . . . . . . . . . . . . . . . . Miscellaneous 98 | . 6 3 2 . 2 7 . 12 . 12 . . 13 7 . 7 . 14 . . . 13 . Route ------- -11/Scrapyard -10/Materials (discovered 3 exits: *Mat / *Min x2) -10/Mines (discovered 2 exits: *Mat / *Sub) -9/Materials -9/Mines (discovered 2 exits: *Mat / *Zio) -7/Zion (discovered 2 exits: Dee / *Pro) -6/Proximity Caves -6/Factory (discovered 3 exits: Fac / *Low x2) -6/Lower Caves -6/Lower Caves -5/Factory -5/Waste -5/Factory (discovered 4 exits: *Fac x2 / *Upp x2) -5/Upper Caves -5/Upper Caves (discovered 2 exits: *Fac / *Zhi) -5/Zhirov -4/Proximity Caves -4/Factory (discovered 7 exits: *Res x3 / Upp x2 / *Ext x2) -4/Extension (discovered 3 exits: *Res x2 / *Cet) -3/Research (discovered 5 exits: *Res x3 / Arm / *Qua) -3/Quarantine (discovered 2 exits: *Sec / *Frg) -3/Section 7 -2/Research -2/Testing History --------- Turn | Location | Event 5 | -11/Scrapyard | Identified exit to Materials 5 | -11/Scrapyard | Discovered exit to Materials (range 16) 11 | -11/Scrapyard | Upgraded with Propulsion slot (x2) 11 | -11/Scrapyard | Upgraded with Utility slot (x1) 11 | -11/Scrapyard | Upgraded with Weapon slot (x1) 81 | -11/Scrapyard | Entered Materials 215 | -10/Materials | Upgraded with Propulsion slot (x1) 216 | -10/Materials | Upgraded with Power slot (x1) 260 | -10/Materials | Identified exit to Mines 260 | -10/Materials | Discovered exit to Mines (range 16) 273 | -10/Materials | Discovered exit to Mines (range 12) 283 | -10/Materials | Identified exit to Materials 283 | -10/Materials | Discovered exit to Materials (range 18) 406 | -10/Materials | Entered Mines 421 | -10/Mines | Discovered exit to Materials (range 10) 427 | -10/Mines | Learned location of Storage (-8) 428 | -10/Mines | Met a Derelict shopkeep closing up shop 449 | -10/Mines | Build established: Hacker-Scout 449 | -10/Mines | Received a Mining Laser from a helpful Derelict 458 | -10/Mines | Identified exit to Subcaves 458 | -10/Mines | Discovered exit to Subcaves (range 14) 543 | -10/Mines | Entered Materials 543 | -9/Materials | Accompanied by 1 ally 545 | -9/Materials | Reached level 2 545 | -9/Materials | Reached level 3 545 | -9/Materials | Upgraded with Utility slot (x2) 585 | -9/Materials | Reached level 4 645 | -9/Materials | Identified exit to Mines 645 | -9/Materials | Discovered exit to Mines (range 14) 665 | -9/Materials | Entered Mines 666 | -9/Mines | Assembled infested the area 671 | -9/Mines | Assisted by a Guerilla fighting off Assembled 691 | -9/Mines | Identified exit to Materials 691 | -9/Mines | Discovered exit to Materials (range 5) 721 | -9/Mines | Met a Derelict bent on vengeance 745 | -9/Mines | Learned 8 Materials zone layouts 765 | -9/Mines | Received a Rocket Launcher from a helpful Derelict 771 | -9/Mines | A Derelict revealed a hidden shortcut to a safe place 773 | -9/Mines | Entered Zion 775 | -7/Zion | Reached level 5 775 | -7/Zion | Reached level 6 777 | -7/Zion | Upgraded with Utility slot (x1) 784 | -7/Zion | Learned location of 1 exit from Factory 801 | -7/Zion | Identified exit to Proximity Caves 801 | -7/Zion | Discovered exit to Proximity Caves (range 16) 845 | -7/Zion | Found Prototype Processor 845 | -7/Zion | Identified Exp. Armor Integrity Analyzer 847 | -7/Zion | Found Prototype Processor 847 | -7/Zion | Identified Exp. Terrain Scan Processor 849 | -7/Zion | Found Prototype Processor 849 | -7/Zion | Identified Exp. Targeting Computer 894 | -7/Zion | Identified exit to Deep Caves 894 | -7/Zion | Discovered exit to Deep Caves (range 13) 912 | -7/Zion | Learned Factory emergency access door positions 947 | -7/Zion | Given the Hacking Drone Bay 948 | -7/Zion | Found Prototype Device 948 | -7/Zion | Identified Hacking Drone Bay 969 | -7/Zion | Learned location of Warlord (-4) 1026 | -7/Zion | Entered Proximity Caves 1028 | -6/Proximity Caves | Reached level 7 1028 | -6/Proximity Caves | Reached level 8 1028 | -6/Proximity Caves | Reached level 9 1028 | -6/Proximity Caves | Reached level 10 1068 | -6/Proximity Caves | Upgraded with Propulsion slot (x1) 1106 | -6/Proximity Caves | Spotted B-75 Beast 1106 | -6/Proximity Caves | Learned Factory emergency access door positions 1127 | -6/Proximity Caves | Identified exit to Factory 1127 | -6/Proximity Caves | Discovered exit to Factory (range 4) 1161 | -6/Proximity Caves | Entered Factory 1162 | -6/Factory | Identified exit to Factory 1163 | -6/Factory | Reached level 11 1163 | -6/Factory | Reached level 12 1163 | -6/Factory | Reached level 13 1163 | -6/Factory | Upgraded with Propulsion slot (x1) 1163 | -6/Factory | Upgraded with Utility slot (x1) 1201 | -6/Factory | Identified exit to Lower Caves 1201 | -6/Factory | Discovered exit to Lower Caves (range 10) 1299 | -6/Factory | Fabricated Ripper (x1) 1316 | -6/Factory | Discovered exit to Lower Caves (range 17) 1352 | -6/Factory | Entered Lower Caves 1390 | -6/Lower Caves | Encountered a Warlord checkpoint 1401 | -6/Lower Caves | Attacked by a delusional Derelict stockpiling parts 1483 | -6/Lower Caves | Build established: Hacker-Ninja 1483 | -6/Lower Caves | Spotted B-75 Beast 1488 | -6/Lower Caves | Learned Factory garrison access intel 1505 | -6/Lower Caves | Identified exit to Lower Caves 1505 | -6/Lower Caves | Discovered exit to Lower Caves (range 12) 1567 | -6/Lower Caves | Entered another Lower Caves area 1569 | -6/Lower Caves | Reached level 14 1582 | -6/Lower Caves | Discovered exit to Factory (range 10) 1622 | -6/Lower Caves | Encountered a Warlord checkpoint 1671 | -6/Lower Caves | Entered Factory 1673 | -5/Factory | Loaded intel: 3 garrison access locations 1673 | -5/Factory | Reached level 15 1673 | -5/Factory | Upgraded with Utility slot (x1) 1794 | -5/Factory | Reached level 16 1838 | -5/Factory | Identified exit to Factory 1838 | -5/Factory | Discovered exit to Factory (range 9) 1838 | -5/Factory | Sucked down chute 1838 | -5/Factory | Entered Waste 1840 | -5/Waste | Spotted C-40 Crusher 1846 | -5/Waste | Spotted C-40 Crusher 1846 | -5/Waste | Spotted C-40 Crusher 1848 | -5/Waste | Spotted C-40 Crusher 1852 | -5/Waste | Spotted C-40 Crusher 1852 | -5/Waste | Identified exit to Factory 1852 | -5/Waste | Discovered exit to Factory (range 12) 1852 | -5/Waste | Spotted C-40 Crusher 1854 | -5/Waste | Found Adv. Powered Armor 1855 | -5/Waste | Warlord forces began an assault 1866 | -5/Waste | Allies destroyed C-40 Crusher 1866 | -5/Waste | Allies destroyed C-40 Crusher 1876 | -5/Waste | Entered Factory 1876 | -5/Factory | Accompanied by 4 allies 1905 | -5/Factory | Lost 3 allies 2011 | -5/Factory | Discovered exit to Factory (range 8) 2018 | -5/Factory | Discovered exit to Factory (range 17) 2036 | -5/Factory | Identified exit to Upper Caves 2082 | -5/Factory | Entered Upper Caves 2091 | -5/Upper Caves | Learned location of 1 exit from Factory 2126 | -5/Upper Caves | Identified exit to Upper Caves 2126 | -5/Upper Caves | Discovered exit to Upper Caves (range 3) 2136 | -5/Upper Caves | Learned Factory trap positions 2155 | -5/Upper Caves | Reached level 17 2193 | -5/Upper Caves | Upgraded with Utility slot (x1) 2247 | -5/Upper Caves | Attracted the attention of an 0b10 outpost 2280 | -5/Upper Caves | Entered another Upper Caves area 2284 | -5/Upper Caves | Discovered exit to Factory (range 15) 2366 | -5/Upper Caves | Encountered a Warlord checkpoint 2416 | -5/Upper Caves | Attracted the attention of an 0b10 checkpoint 2470 | -5/Upper Caves | Learned location of 1 exit from Factory 2472 | -5/Upper Caves | Identified exit to Zhirov 2495 | -5/Upper Caves | Entered Zhirov 2495 | -5/Zhirov | Identified exit to Proximity Caves 2495 | -5/Zhirov | Discovered exit to Proximity Caves (range 3) 2499 | -5/Zhirov | Met Zhirov 2507 | -5/Zhirov | Learned location of Quarantine (-3) 2507 | -5/Zhirov | Learned location of Testing (-2) 2507 | -5/Zhirov | Learned location of Command (-1) 2509 | -5/Zhirov | Zhirov requested help retrieving the SGEMP Prototype 2513 | -5/Zhirov | Found Alien Artifact 2513 | -5/Zhirov | Identified Integrated Reactor 2513 | -5/Zhirov | Installed Integrated Reactor, increased core energy generation (+10) 2517 | -5/Zhirov | Found Alien Artifact 2517 | -5/Zhirov | Identified Transdimensional Reconstructor 2517 | -5/Zhirov | Warped through subspace 2550 | -5/Zhirov | Entered Proximity Caves 2552 | -4/Proximity Caves | Reached level 18 2552 | -4/Proximity Caves | Reached level 19 2553 | -4/Proximity Caves | Upgraded with Utility slot (x1) 2564 | -4/Proximity Caves | Learned location of Armory (-3) 2588 | -4/Proximity Caves | Learned Factory trap positions 2588 | -4/Proximity Caves | Learned location of Extension (-4) 2600 | -4/Proximity Caves | Attracted the attention of an 0b10 checkpoint 2690 | -4/Proximity Caves | Discovered exit to Factory (range 12) 2717 | -4/Proximity Caves | Entered Factory 2718 | -4/Factory | Identified exit to Research 2719 | -4/Factory | Loaded intel: 88 trap records 2719 | -4/Factory | Reached level 20 2720 | -4/Factory | Upgraded with Propulsion slot (x1) 2805 | -4/Factory | Identified exit to Upper Caves 2805 | -4/Factory | Identified exit to Extension 2807 | -4/Factory | Discovered exit to Research (range 17) 2837 | -4/Factory | Spotted B-86 Titan 2856 | -4/Factory | Entered Extension 2858 | -4/Extension | Reached level 21 2860 | -4/Extension | Upgraded with Power slot (x1) 2879 | -4/Extension | Spotted B-86 Titan 2917 | -4/Extension | Rescued A7 2969 | -4/Extension | Rescued a captive Derelict 2972 | -4/Extension | Rescued a captive Derelict 2997 | -4/Extension | Rescued a captive Derelict 3088 | -4/Extension | Spotted B-86 Titan 3091 | -4/Extension | Discovered exit to Research (range 3) 3108 | -4/Extension | Rescued a captive Derelict 3109 | -4/Extension | Rescued a captive Derelict 3128 | -4/Extension | Rescued a captive Derelict 3129 | -4/Extension | Rescued a captive Derelict 3265 | -4/Extension | Discovered exit to Research (range 18) 3266 | -4/Extension | Identified exit to Cetus 3266 | -4/Extension | Discovered exit to Cetus (range 12) 3311 | -4/Extension | Entered Research 3311 | -3/Research | Accompanied by 5 allies (A7) 3313 | -3/Research | Reached level 22 3313 | -3/Research | Reached level 23 3313 | -3/Research | Upgraded with Utility slot (x1) 3335 | -3/Research | Identified exit to Armory 3335 | -3/Research | Discovered exit to Armory (range 16) 3353 | -3/Research | Found Prototype Processor 3353 | -3/Research | Identified Spectral Analyzer 3407 | -3/Research | Found Prototype Device 3407 | -3/Research | Identified Exp. Thermal Shield 3459 | -3/Research | Identified exit to Research 3460 | -3/Research | Identified exit to Quarantine 3460 | -3/Research | Discovered exit to Quarantine (range 20) 3527 | -3/Research | Fabricated Y-64 Sentinel? 3594 | -3/Research | Entered Quarantine 3596 | -3/Quarantine | Reached level 24 3601 | -3/Quarantine | Reached level 25 3608 | -3/Quarantine | Found Alien Impact Weapon 3608 | -3/Quarantine | Identified Core Stripper 3629 | -3/Quarantine | Found Alien Artifact 3629 | -3/Quarantine | Identified Subatomic Replicator 3639 | -3/Quarantine | Found Alien Artifact 3639 | -3/Quarantine | Identified Core Reset Matrix 3639 | -3/Quarantine | Reached level 26 3639 | -3/Quarantine | Used Core Reset Matrix 3643 | -3/Quarantine | Detected hypermatrix surge 3643 | -3/Quarantine | Sensed 10 artifacts in vicinity 3657 | -3/Quarantine | Found Hpw. Transdimensional Reconstructor 3695 | -3/Quarantine | Met incapacitated Sigix Warrior 3695 | -3/Quarantine | Lockdown squad dispatched 3738 | -3/Quarantine | Used Subatomic Replicator to replicate Sigix Containment Pod 3742 | -3/Quarantine | Found Sigix Containment Pod 3754 | -3/Quarantine | Spotted Lightning 3754 | -3/Quarantine | Spotted Lightning 3754 | -3/Quarantine | Spotted Lightning 3862 | -3/Quarantine | Spotted Fortress 3863 | -3/Quarantine | Destroyed Fortress 3873 | -3/Quarantine | Found Prototype Device 3873 | -3/Quarantine | Identified Thermal Barrier 3876 | -3/Quarantine | Found Prototype Device 3876 | -3/Quarantine | Identified Exp. Force Field 3879 | -3/Quarantine | Found Prototype Reactor 3879 | -3/Quarantine | Identified Vortex Chain Reactor 3886 | -3/Quarantine | Found Prototype Device 3886 | -3/Quarantine | Identified Exp. EM Shield 3908 | -3/Quarantine | Identified exit to Section 7 3908 | -3/Quarantine | Discovered exit to Section 7 (range 6) 3908 | -3/Quarantine | Identified exit to Protoforge 3908 | -3/Quarantine | Discovered exit to Protoforge (range 6) 3910 | -3/Quarantine | Entered Section 7 3911 | -3/Section 7 | Detected hypermatrix surge 3911 | -3/Section 7 | Sensed 20 artifacts in vicinity 3912 | -3/Section 7 | Reached level 27 3940 | -3/Section 7 | Build established: Infiltrator-Ninja 3940 | -3/Section 7 | Spotted S7 Guard 3950 | -3/Section 7 | Found Core Membrane 3950 | -3/Section 7 | Installed Core Membrane, gained immunity to corruption 3987 | -3/Section 7 | Spotted Alpha 7 3987 | -3/Section 7 | Spotted Alpha 7 3991 | -3/Section 7 | Spotted B-99 Colossus 4017 | -3/Section 7 | Found Integrated Dissipator 4017 | -3/Section 7 | Installed Integrated Dissipator, increased core heat dissipation (+20) 4019 | -3/Section 7 | Found Integrated Dissipator 4019 | -3/Section 7 | Installed Integrated Dissipator, increased core heat dissipation (+20) 4027 | -3/Section 7 | Found LRC Armor 4027 | -3/Section 7 | Installed LRC Armor, increased core integrity (+250) 4030 | -3/Section 7 | Found LRC Inertial Stabilizer 4030 | -3/Section 7 | Installed LRC Inertial Stabilizer, increased mass support (+10) 4031 | -3/Section 7 | Found LRC Energy Well 4031 | -3/Section 7 | Installed LRC Energy Well, increased energy storage capacity (+250) 4066 | -3/Section 7 | Found Integrated Reactor 4066 | -3/Section 7 | Installed Integrated Reactor, increased core energy generation (+10) 4093 | -3/Section 7 | Reached level 28 4093 | -3/Section 7 | Activated Sigix Exoskeleton 4093 | -3/Section 7 | Received instructions from Sigix Warrior 4097 | -3/Section 7 | Spotted Executioner 4097 | -3/Section 7 | Spotted Executioner 4100 | -3/Section 7 | Spotted Striker 4100 | -3/Section 7 | Spotted Striker 4109 | -3/Section 7 | Spotted Executioner 4110 | -3/Section 7 | Spotted Executioner 4158 | -3/Section 7 | Entered Research 4160 | -2/Research | Reached level 29 4160 | -2/Research | Upgraded with Propulsion slot (x1) 4243 | -2/Research | Build established: Alien-Ninja 4338 | -2/Research | Reached level 30 4370 | -2/Research | Identified exit to Testing 4370 | -2/Research | Discovered exit to Testing (range 18) 4458 | -2/Research | Entered Testing 4459 | -2/Testing | Spotted PH-JOORQQLCUB 4497 | -2/Testing | Protovariant out of control (PH-JOORQQLCUB) 4497 | -2/Testing | Unleashed a protovariant (PH-JOORQQLCUB) 4509 | -2/Testing | Found Prototype Device 4509 | -2/Testing | Identified 2N-1CE's Frost Array 4535 | -2/Testing | Destroyed PH-JOORQQLCUB 4541 | -2/Testing | Found Prototype Device 4541 | -2/Testing | Identified Exp. Weapon Cycler 4544 | -2/Testing | Found Prototype Device 4544 | -2/Testing | Identified Exp. Phase Shifter 4547 | -2/Testing | Found Prototype Device 4547 | -2/Testing | Identified Exp. ECM Suite 4567 | -2/Testing | Spotted Striker 4588 | -2/Testing | Spotted Investigator 4595 | -2/Testing | Scanned by Researcher 4637 | -2/Testing | Core integrity fell below 50% 4649 | -2/Testing | Core integrity fell below 20% 4656 | -2/Testing | Destroyed by B-74 Champion with Powered Hammer Last Messages --------------- 04642_ W-44 Eye distress signal jammed. 04642_ Adv. Transmission Jammer severed. 04643_ Held in stasis. 04643_ Investigator is analyzing... 04643_ W-44 Eye stasis bubble bursts. 04645_ K-01 Serf collects debris. 04646_ Held in stasis. 04647_ K-01 Serf collects debris. 04648_ Critical hit (Smash). 04648_ Exp. Phase Shifter destroyed. 04648_ Core Membrane filtered system corruption (1). 04648_ Lgt. Antimatter Reactor+ severed. 04649_ Held in stasis. 04649_ Investigator is analyzing... 04650_ Lrn. Terrain Scanner severed. 04652_ K-01 Serf cleans the Terminal. 04652_ Held in stasis. 04652_ Investigator is analyzing... 04652_ Q-thruster+ severed. 04655_ Held in stasis. Map ----- +----------------------------------------------------+ | ###########################?? ? ?" ? ? ???????? | | ########################### ?? ? ?? ????????? | | ####?###################### ? ? ? ??????? | | ############################+#######?#?#?????????? | | ############################ ##### ? ? ? ?????? | | ####################### ##### ?###?#?????? | | ####################### ##### ??####?????? | | " ####################### ##?###?????? | | """ ####################### ? ??????? | | "" ####################### T ? ??? | | "" ####################### """ ?? ??????? | | "" ###############]]#""## """ #######????? | | "" ###############" "!!## """ #######????? | | ##############"! "## ###?### ???? | | ##############" ""## #######????? | | # #########" "## ############## ? ? | | # ######### ## ############## ??? | | #+#### ##########+###### ############## ???? | | ### # ####? ?? | | ### # ##### ?? | | """"" ### # """ ##### ? ? | | ""T"" ### # """ ##### ?? | | k ###k # """ ##### ? ?? | | """ " """ " """"" k=### # ##### ? ? | | """"" """"" """"" ! %%### # """ ####? ? | | """"" """"" """""%!*! !l@= + """ ##### ? | | """"" """"" """""/*= c!b* # """ ### ? ? | | = l + ### ?? ? ? | | u ==% # """ ### ? | | ## ############+########## # """ ### | | ## ######### % ###### # """ ### ??? | | ## ## ] # """###### # #####+#?## | | ## ## !# """###### # """ ### ??# | | ## ## "%[+ % """###### # """ ### ??? ?? | | ## ## """"!# """###### # """ ### ??? | | ## ## """" # """######+##+# ###? ? ?? | | ## ## """"=# ] """#### ############?? ? ?? | | ## ## """"*# """#### """" ##########?# ???? | | ## ## !!= # ! #### """" ############?##???? | | # # ""!=####T######## """" ############?##???? | | # " # "G[!]############# """" ########?##?##????? | | # + ""%[############# ########?##?###?#?# | | #= # !#############################?##?????? | | ## ###################################?????????#? | | ## ##"""""#########################?#??#?#??#???? | | ## # " " "###########################????#??##??? | | ## + " "#########################?##??????????? | | ## # ##########################?#?????##?#?? | | ## ###"""#######################?#??##?#??#??#??? | | ## ###"!"######################?#????##???#?????? | +----------------------------------------------------+ Best States ------------- Heat Dissipation 261 Coolant Potential 100 Energy Generation 131 Energy Capacity 1330 Matter Stores 300 Matter Capacity 300 Sight Range 18 Robot Scan Range 26 Terrain Scan Range 24 Terrain Scan Density 1010 ECM Strength 3 Jamming Range 16 Cloak Strength 3 Power Amplification 40 EM Shielding 4 Armor Coverage 150 Resistance: KI 40 Resistance: TH 40 Resistance: EX 40 Resistance: EM 35 Resistance: I 35 Resistance: S 35 Resistance: P 35 Utility Shielding 90 Melee Speed Boost 20 Phase Shifting 20 Evasion (%) 98 Targeting Accuracy 5 Melee Accuracy 8 Offensive Hacking 32 Item Schematics ----------------- Adv. Micro-nuke Launcher | -3/Section 7 | Archive Hvy. Tesla Rifle | -3/Section 7 | Archive Spectral Analyzer | -3/Section 7 | Archive Prc. Matter Filter | -3/Section 7 | Archive Lrn. Phase Cannon | -3/Section 7 | Archive Exp. EM Disruption Field | -3/Section 7 | Archive Adv. Plasma Rifle | -3/Section 7 | Archive Stealth Drone Bay | -3/Section 7 | Archive Hvy. Proton Cannon | -3/Section 7 | Archive Cld. Gravmag System | -3/Section 7 | Archive Robot Schematics ------------------ A-27 Freighter | -3/Section 7 | Archive W-44 Eye | -3/Section 7 | Archive H-77 Assassin | -3/Section 7 | Archive Fabricated ------------ Ripper | x1 | -6/Factory Y-64 Sentinel | x2 | -3/Research | Preloaded Repaired ---------- Nothing Studied --------- Q-thruster | -3/Quarantine | Hacked Lgt. Antimatter Reactor | -3/Quarantine | Hacked Alien Tech Used ----------------- Integrated Reactor Transdimensional Reconstructor Core Stripper Subatomic Replicator Core Reset Matrix Core Membrane Integrated Dissipator LRC Armor LRC Inertial Stabilizer LRC Energy Well Achievements -------------- Hornet's Nest Infodabbler Partsplosion That Tickles Challenges ------------ None RPGLIKE | -11 -10 -10 -9 -9 -7 -6 -6 -6 -6 -5 -5 -5 -5 -5 -5 -4 -4 -4 -3 -3 -3 -2 -2 --------- Run | Yrd Mat Min Mat Min Zio Pro Fac Low Low Fac Was Fac Upp Upp Zhi Pro Fac Ext Res Qua Sec Res Tes Levels Raised 29 | . . . 3 . 2 4 3 . 1 2 . . 1 . . 2 1 1 2 3 2 2 . XP Earned 50744 | 6000 560 600 3749 500 2403 7022 3682 750 500 2841 245 566 900 500 650 1938 1740 2331 3004 4162 2555 2522 1024 XP Spent 46850 | 3820 2110 50 2890 . 4330 2300 8470 . 680 2000 . . 2300 . . 3475 2000 1400 2900 4775 1050 2300 . Upgrades 78 | 12 6 1 5 . 11 3 18 . 2 1 . . 1 . . 6 1 2 1 6 1 1 . Power Slot 2 | . 1 . . . . . . . . . . . . . . . . 1 . . . . . Propulsion Slot 7 | 2 1 . . . . 1 1 . . . . . . . . . 1 . . . . 1 . Utility Slot 9 | 1 . . 2 . 1 . 1 . . 1 . . 1 . . 1 . . 1 . . . . Weapon Slot 1 | 1 . . . . . . . . . . . . . . . . . . . . . . . Heat Dissipation 16 | . 3 . 2 . . . 9 . 2 . . . . . . . . . . . . . . Energy Generation 4 | . 1 . . . . . 2 . . . . . . . . . . . . . 1 . . Energy Storage 5 | . . . . . . . . . . . . . . . . 2 . . . 3 . . . Mass Support 4 | 1 . . . . 1 . . . . . . . . . . . . . . 2 . . . Inventory Capacity 5 | 2 . . 1 . 1 . . . . . . . . . . . . . . 1 . . . Sight Range 2 | 2 . . . . . . . . . . . . . . . . . . . . . . . Sensor Range 5 | . . 1 . . 4 . . . . . . . . . . . . . . . . . . Terrain Scan Density 10 | 3 . . . . 2 . 5 . . . . . . . . . . . . . . . . Melee Accuracy 5 | . . . . . 2 2 . . . . . . . . . . . 1 . . . . . KI Resistance % 1 | . . . . . . . . . . . . . . . . 1 . . . . . . . TH Resistance % 1 | . . . . . . . . . . . . . . . . 1 . . . . . . . EX Resistance % 1 | . . . . . . . . . . . . . . . . 1 . . . . . . . Protomatter Created 663 | . 85 32 . . . 91 . 49 . . . . 128 . . . . 78 . . . 100 100 Integrity Restored 1889 | . 83 44 42 . 27 103 . 205 . 228 . . 284 122 . 158 . 293 . . . 300 . Core 1487 | . 46 33 23 . . 74 . 145 . 226 . . 194 90 . 138 . 218 . . . 300 . Parts 402 | . 37 11 19 . 27 29 . 60 . 2 . . 90 32 . 20 . 75 . . . . . Protomatter Decayed 293 | . 18 36 . . 23 28 . . . . . . . 60 . . . 66 62 . . . . Game ------ Seed MetafiberCloakMesh Manual? 0 Play Time 02:53:13 Cumulative 315.7 hours Start 2025.10.27 @ 21:55:59 End 2025.10.28 @ 22:19:06 Sessions 3 Manual Loads 0 Difficulty Explorer Special Mode Winter2019/RPGLIKE Game No. 117 Rogue 0 Adventurer 1 Explorer 116 Win Type - Total 25 Types 13/1/5/3/0/1/1/0/1/0 Lore% 64 Gallery% 72 Achievement% 51 Wizard Run 0 Options --------- Layout 0 ASCII 0 Keyboard 1 Movement Numpad Keybinds 0 Fullscreen 0 Font 16/SmallcapsGlow Map View 88x55 Zoom Use 0% Tactical HUD 1 Map Filters BRIGHTNESS(150) Filters NONE Steam 1 RUN: 23ab9ad5-9889-434c-8650-f2b10f170155